bitfinex/quotes_ETHUSD_20251201
["timestamp","ask_amount","ask_price","bid_price","bid_amount"]
[1764611210459,0.405504,2755.8,2754.5,0.72559411]
[1764611210460,3.62884203,2755.7,2754.5,0.72559411]
[1764611210826,3.62884203,2755.7,2755.5,0.001]
[1764611211456,4.03427628,2755.8,2755.5,0.001]
[1764611211653,0.76621347,2755.9,2755.5,0.001]
[1764611211654,4.39484418,2755.9,2755.5,0.001]
[1764611211866,8.02347489,2755.9,2755.5,0.001]
[1764611212338,4.39484418,2755.9,2755.5,0.001]
[1764611212545,0.80233433,2755.8,2755.5,0.001]
[1764611212740,7.25726142,2755.9,2755.5,0.001]
[1764611212970,0.405504,2755.8,2755.5,0.001]
[1764611213472,0.0997041,2755.6,2755.5,0.001]
[1764611214038,0.405504,2755.7,2755.5,0.001]
[1764611214273,3.62863071,2755.9,2755.5,0.001]
[1764611214460,10.07703154,2756.4,2755.5,0.001]
[1764611214461,0.72559411,2756.2,2755.5,0.001]
[1764611214665,0.405504,2756.1,2755.5,0.001]
[1764611215954,1.24427597,2756.1,2755.5,0.001]
[1764611216572,0.405504,2755.9,2755.5,0.001]
[1764611218276,1.13109811,2755.9,2755.5,0.001]
[1764611218574,7.66318806,2755.7,2755.5,0.001]
[1764611219454,1.23080221,2755.6,2755.5,0.001]
[1764611219665,2.13755084,2755.6,2755.5,0.001]
[1764611219870,2.03784674,2755.6,2755.5,0.001]
[1764611220376,2.40128871,2755.6,2755.5,0.001]
[1764611220680,6.03026243,2755.6,2755.5,0.001]
[1764611221076,6.03026243,2755.6,2754.3,0.58]
[1764611221077,0.405504,2754.5,2754.3,0.001]
[1764611221289,0.5052081,2754.4,2754.3,0.001]
[1764611222675,4.86135695,2754.4,2754.3,0.001]
[1764611222881,5.12509482,2754.4,2754.3,0.001]
[1764611223964,1.13109811,2754.3,2754.0,0.001]
[1764611224146,11.79937282,2754.1,2754.0,0.001]
[1764611224751,0.36344197,2754.1,2754.0,0.001]
[1764611224943,0.14556967,2757.3,2754.0,0.001]
[1764611224944,3.63084361,2754.2,2754.0,0.001]
[1764611225147,1.08903608,2754.4,2754.0,0.001]
[1764611225387,0.72559411,2754.4,2754.0,0.001]
[1764611225569,3.63041941,2754.6,2754.0,0.001]
[1764611225775,0.72559411,2754.5,2754.0,0.001]
[1764611226153,0.0997041,2754.3,2754.0,0.001]
[1764611226353,0.5052081,2754.5,2754.0,0.001]
[1764611226662,0.36344197,2754.7,2754.0,0.001]
[1764611226857,3.63019445,2754.7,2754.0,0.001]
[1764611227184,0.0997041,2755.0,2754.0,0.001]
[1764611227549,0.405504,2755.2,2754.0,0.001]
[1764611227878,0.36344197,2754.9,2754.0,0.001]
[1764611228050,1.08903608,2754.9,2754.0,0.001]
[1764611228250,0.405504,2754.5,2754.0,0.001]
[1764611228467,0.405504,2754.1,2754.0,0.001]
[1764611228673,10.30483274,2755.0,2754.0,0.001]
[1764611228979,8.08601473,2754.6,2754.0,0.001]
[1764611229169,0.405504,2754.3,2754.0,0.001]
[1764611231080,4.03626336,2754.3,2754.0,0.001]
[1764611231460,1.13309811,2754.7,2754.0,0.001]
[1764611231681,0.405504,2754.5,2754.0,0.001]
[1764611231894,1.13109811,2754.5,2754.0,0.001]
[1764611232355,0.405504,2754.3,2754.0,0.001]
[1764611232682,0.5052081,2754.3,2754.0,0.001]
[1764611232850,4.86175242,2754.1,2754.0,0.001]
[1764611233856,4.76204832,2754.1,2754.0,0.001]
[1764611234604,4.86175242,2754.1,2754.0,0.001]
[1764611234765,5.71101105,2754.1,2754.0,0.001]
[1764611236009,4.98541694,2754.1,2754.0,0.001]
[1764611236676,4.03645421,2754.1,2754.0,0.001]
[1764611237098,0.93887214,2754.4,2754.0,0.001]
[1764611237307,0.72559411,2754.2,2754.0,0.001]
[1764611237528,0.0997041,2754.1,2754.0,0.001]
[1764611237812,4.13615831,2754.1,2754.0,0.001]
[1764611238220,4.86175242,2754.1,2754.0,0.001]
[1764611239904,5.12549029,2754.1,2754.0,0.001]
[1764611240108,6.05902294,2754.1,2754.0,0.001]
[1764611241521,4.03645421,2754.1,2754.0,0.001]
[1764611243631,4.76204832,2754.1,2754.0,0.001]
[1764611243837,13.75583529,2754.1,2754.0,0.001]
[1764611244032,15.40268829,2754.1,2754.0,0.001]
[1764611244342,5.12549029,2754.1,2754.0,0.001]
[1764611244515,6.05902294,2754.1,2754.0,0.001]
[1764611244715,13.78251894,2754.1,2754.0,0.001]
[1764611245115,0.76894597,2753.8,2753.4,0.001]
[1764611245315,25.85185322,2753.8,2753.4,0.001]
[1764611245561,24.31330422,2753.8,2753.4,0.001]
[1764611245694,0.76894597,2753.5,2753.4,0.001]
[1764611245894,9.00290208,2753.5,2753.4,0.001]
[1764611246099,12.6346435,2753.5,2753.4,0.001]
[1764611246841,8.8076435,2753.5,2753.4,0.001]
[1764611247007,5.7052815,2753.5,2753.4,0.001]
[1764611247330,5.65446752,2753.5,2753.4,0.001]
[1764611247511,3.99518339,2753.5,2753.4,0.001]
[1764611247705,0.579,2753.7,2753.4,0.001]
[1764611247927,0.36392,2753.5,2753.4,0.001]
[1764611248331,3.99566142,2753.5,2753.4,0.001]
[1764611249607,3.83114963,2753.5,2753.4,0.001]
[1764611249819,4.23665363,2753.5,2753.4,0.001]
[1764611250218,5.09604027,2753.5,2753.4,0.001]
[1764611250541,5.82163438,2753.5,2753.4,0.001]
[1764611252429,14.51241638,2753.5,2753.4,0.001]
[1764611252617,5.72193027,2753.5,2753.4,0.001]
[1764611256654,4.99633616,2753.5,2753.4,0.001]
[1764611256867,5.57533616,2753.5,2753.4,0.001]
[1764611257450,6.30093027,2753.5,2753.4,0.001]
[1764611258822,12.74993026,2753.5,2753.4,0.001]
[1764611260920,22.32816326,2753.5,2753.4,0.001]
[1764611261647,21.03459526,2753.5,2753.4,0.001]
[1764611261849,12.17093026,2753.5,2753.4,0.001]
[1764611262051,12.74993026,2753.5,2753.4,0.001]
[1764611268164,0.60491221,2753.2,2753.1,0.001]
[1764611268364,4.00505035,2753.2,2753.1,0.001]
[1764611268532,1.33050632,2753.2,2753.1,0.001]
[1764611268729,1.90950632,2753.2,2753.1,0.001]
[1764611269037,16.70939146,2753.2,2753.1,0.001]
[1764611269449,19.43735646,2753.2,2753.1,0.001]
[1764611269861,23.313128,2752.9,2752.8,0.001]
[1764611270078,0.36392,2752.0,2751.9,0.001]
[1764611270241,1.348424,2752.0,2751.9,0.001]
[1764611271742,5.70773904,2752.0,2751.9,0.001]
[1764611275180,0.72559411,2752.0,2751.9,0.001]
[1764611275334,4.35931504,2752.0,2751.9,0.001]
[1764611275539,5.75810692,2752.0,2751.9,0.001]
[1764611276040,0.0997041,2752.1,2751.9,0.001]
[1764611276784,0.36392,2752.1,2751.9,0.001]
[1764611277268,0.36392,2752.3,2751.9,0.001]
[1764611277764,0.405504,2752.4,2751.9,0.001]
[1764611277968,0.36392,2752.0,2751.9,0.001]
[1764611278166,0.769424,2752.0,2751.9,0.001]
[1764611278341,4.40314493,2752.0,2751.9,0.001]
[1764611279536,0.769424,2752.0,2751.9,0.001]
[1764611279761,4.40314493,2752.0,2751.9,0.001]
[1764611280664,0.72559411,2752.2,2751.9,0.001]
[1764611280863,0.60491221,2752.0,2751.9,0.001]
[1764611282644,4.96422725,2752.0,2751.9,0.001]
[1764611283338,5.54322725,2752.0,2751.9,0.001]
[1764611285472,4.96422725,2752.0,2751.9,0.001]
[1764611286844,6.44899999,2752.3,2751.9,0.001]
[1764611287745,0.002,2752.8,2751.9,0.001]
[1764611288851,0.002,2752.8,2751.9,3.63485297]
[1764611290277,0.002,2752.8,2752.0,0.72559411]
[1764611290465,0.002,2752.8,2752.3,0.72559411]
[1764611290674,0.002,2752.8,2752.3,1.30459411]
[1764611290974,0.002,2752.8,2752.4,7.26638568]
[1764611291152,0.002,2752.8,2752.5,0.72559411]
[1764611291585,0.002,2752.8,2752.4,7.26638568]
[1764611291586,0.002,2752.8,2752.6,0.14557232]
[1764611291742,0.002,2752.8,2752.0,0.38957144]
[1764611291943,0.002,2752.8,2752.0,4.21271256]
[1764611292146,0.002,2752.8,2752.0,7.84643349]
[1764611292568,0.002,2752.8,2752.0,4.21271256]
[1764611292883,0.002,2752.8,2752.0,7.84643349]
[1764611293049,0.002,2752.8,2752.1,0.579]
[1764611293245,0.002,2752.8,2752.0,0.579]
[1764611294348,0.36592,2752.8,2752.0,0.579]
[1764611294951,0.002,2752.8,2752.0,0.579]
[1764611295965,0.36592,2752.8,2751.9,0.001]
[1764611296170,0.36392,2752.7,2751.9,0.001]
[1764611296352,0.36592,2752.8,2751.9,0.001]
[1764611296956,3.63279689,2752.7,2751.9,0.001]
[1764611297666,0.405504,2752.7,2751.9,0.001]
[1764611297849,0.002,2752.8,2751.9,0.001]
[1764611298051,0.002,2752.8,2751.9,0.72659411]
[1764611299191,0.002,2752.8,2751.9,4.36039535]
[1764611299552,0.002,2752.8,2751.9,7.99424832]
[1764611300479,0.002,2752.8,2751.9,4.36039535]
[1764611300691,0.002,2752.8,2751.9,0.001]
[1764611300893,0.002,2752.8,2751.9,3.63482165]
[1764611302394,0.002,2752.8,2752.0,0.72559411]
[1764611303272,0.002,2752.8,2752.2,0.72559411]
[1764611303471,0.002,2752.8,2752.3,4.21232485]
[1764611304081,0.002,2752.8,2752.3,7.8456497]
[1764611304250,0.002,2752.8,2752.3,0.579]
[1764611304455,0.002,2752.8,2751.9,0.406504]
[1764611304655,0.002,2752.8,2752.0,0.579]
[1764611304868,0.002,2752.8,2752.0,1.30459411]
[1764611305380,0.002,2752.8,2752.0,0.579]
[1764611305785,0.002,2752.8,2752.0,4.21271215]
[1764611305980,0.002,2752.8,2752.0,0.579]
[1764611306887,0.002,2752.8,2752.0,4.21271123]
[1764611307489,0.002,2752.8,2752.3,0.72559411]
[1764611308265,0.002,2752.8,2752.3,0.87118551]
[1764611308675,0.002,2752.8,2752.6,0.72559411]
[1764611308852,0.002,2752.8,2752.7,0.579]
[1764611313126,0.002,2752.8,2752.3,0.1455914]
[1764611313291,0.002,2752.8,2752.4,0.579]
[1764611314001,0.002,2752.8,2752.6,0.72559411]
[1764611315899,0.002,2752.8,2752.5,7.2661217]
[1764611316593,0.002,2752.8,2752.6,11.0454699]
[1764611317180,0.002,2752.8,2752.7,0.578]
[1764611317700,0.002,2752.8,2752.6,0.72559411]
[1764611317871,0.002,2752.8,2752.7,0.578]
[1764611318501,0.002,2752.8,2752.7,4.21079689]
[1764611318891,0.002,2752.8,2752.7,0.578]
[1764611319466,0.002,2752.8,2752.7,14.53067268]
[1764611322000,0.002,2752.8,2752.3,3.63328597]
[1764611322202,0.002,2752.8,2752.4,0.578]
[1764611322405,0.002,2752.8,2752.6,0.72559411]
[1764611322777,0.002,2752.8,2752.4,4.93672025]
[1764611322976,0.002,2752.8,2752.1,3.63352497]
[1764611323194,0.002,2752.8,2752.2,1.30359411]
[1764611323385,0.002,2752.8,2752.2,11.6234699]
[1764611324916,0.002,2752.8,2752.4,0.72559411]
[1764611326193,0.002,2752.8,2752.5,0.578]
[1764611327586,0.002,2752.8,2752.5,7.8440172]
[1764611327782,0.002,2752.8,2752.6,0.72559411]
[1764611327988,0.002,2752.8,2752.6,11.0454699]
[1764611328899,0.002,2752.8,2752.7,0.578]
[1764611329623,0.002,2752.8,2752.7,4.21079689]
[1764611332988,0.002,2753.1,2752.8,0.405504]
[1764611333201,0.002,2753.1,2753.0,10.31987579]
[1764611333921,0.002,2753.1,2753.0,13.9522768]
[1764611335501,0.002,2753.4,2753.2,0.405504]
[1764611335822,0.002,2753.4,2753.3,4.93559934]
[1764611337710,0.002,2753.4,2753.3,5.34110334]
[1764611338134,0.002,2754.3,2753.3,16.23711903]
[1764611338330,0.002,2754.3,2753.8,10.31987579]
[1764611338631,0.002,2754.3,2753.9,0.578]
[1764611340847,0.002,2754.3,2753.9,4.2091942]
[1764611341608,0.002,2754.3,2754.0,0.72559411]
[1764611341920,0.002,2754.3,2754.2,14.67628828]
[1764611342305,0.002,2754.3,2754.2,4.35641249]
[1764611342513,0.002,2754.3,2754.2,4.93441249]
[1764611347193,0.002,2754.3,2754.2,15.25428828]
[1764611349500,0.002,2754.6,2754.3,1.13109811]
[1764611350090,0.002,2754.6,2754.4,7.26110948]
[1764611350267,0.002,2754.6,2754.5,0.983504]
[1764611350469,3.62660477,2757.4,2754.5,1.70909811]
[1764611350796,3.62660477,2757.4,2754.4,10.89166422]
[1764611350797,0.36392,2756.4,2754.8,0.72559411]
[1764611351155,0.72559411,2756.8,2754.9,0.578]
[1764611351489,0.405504,2756.5,2754.9,0.578]
[1764611352254,3.62792047,2756.4,2755.1,0.72559411]
[1764611352583,0.40334245,2756.3,2755.2,0.578]
[1764611354186,4.03143789,2756.3,2755.3,0.72559411]
[1764611354390,0.72559411,2756.2,2754.3,10.31987579]
[1764611354577,0.36392,2756.1,2754.4,11.46966422]
[1764611354756,0.36392,2756.1,2754.5,0.72559411]
[1764611354956,1.08951411,2756.2,2754.8,0.72559411]
[1764611355257,0.5120952,2756.1,2754.9,0.578]
[1764611356581,3.62844702,2756.0,2754.9,4.20785407]
[1764611357088,3.62844702,2756.0,2755.0,0.72559411]
[1764611357488,4.1404472,2756.1,2755.0,0.72559411]
[1764611357867,0.0997041,2756.0,2755.0,0.72559411]
[1764611358084,0.42401513,2755.9,2755.0,0.72559411]
[1764611358985,0.42401513,2755.9,2754.9,4.20785407]
[1764611359788,4.05260762,2755.9,2754.9,0.578]
[1764611359962,4.25201468,2755.9,2754.9,0.578]
[1764611360289,0.62342334,2755.9,2754.9,4.20788222]
[1764611360492,0.49775219,2755.8,2754.9,4.20788222]
[1764611361882,4.71790112,2756.1,2754.9,4.20788222]
[1764611363495,4.71790112,2756.1,2754.9,7.83777804]
[1764611363888,4.35398112,2756.1,2754.9,4.20788222]
[1764611364066,0.79821959,2756.0,2754.9,4.20788222]
[1764611365363,0.79821959,2756.0,2754.9,7.83777804]
[1764611365568,0.72559411,2756.2,2754.9,7.83777804]
[1764611365879,4.35378468,2756.2,2754.9,7.83777804]
[1764611366580,0.72559411,2756.2,2754.9,7.83777804]
[1764611366809,0.002,2756.4,2755.6,0.72559411]
[1764611367107,0.002,2756.4,2755.0,11.92413427]
[1764611367270,0.002,2756.4,2755.2,7.25900116]
[1764611367726,0.002,2756.4,2755.2,10.88850174]
[1764611369095,0.002,2756.4,2755.2,7.25900116]
[1764611370894,0.002,2756.4,2755.2,10.88850174]
[1764611372717,0.002,2756.4,2755.2,7.25900116]
[1764611373010,0.002,2756.4,2755.3,1.30359411]
[1764611373366,0.002,2756.4,2755.4,3.62923713]
[1764611373670,0.002,2756.4,2755.3,4.93291352]
[1764611373997,0.0997041,2756.2,2755.4,0.578]
[1764611374298,0.36392,2756.3,2755.5,0.578]
[1764611374502,0.36392,2756.3,2755.6,0.578]
[1764611374870,0.405504,2756.2,2755.6,0.578]
[1764611375697,3.62831537,2756.1,2755.6,0.578]
[1764611375870,0.76620143,2756.0,2755.6,0.578]
[1764611376071,0.002,2756.4,2755.6,4.20697372]
[1764611376307,0.002,2756.4,2755.6,7.83594744]
[1764611377611,0.002,2756.4,2755.6,4.20697372]
[1764611378316,0.002,2756.4,2755.6,7.83594744]
[1764611379314,0.002,2756.4,2755.6,4.20697372]
[1764611379812,0.002,2756.4,2755.6,7.83594744]
[1764611380805,0.002,2756.4,2755.6,5.29763889]
[1764611381114,0.002,2756.4,2755.6,8.92661261]
[1764611381983,0.002,2756.4,2755.6,5.29763889]
[1764611382216,0.002,2756.4,2755.6,4.71961588]
[1764611382421,4.26055656,2756.8,2755.7,0.578]
[1764611382603,4.41617955,2756.8,2755.7,0.578]
[1764611383688,0.0997041,2756.7,2755.7,0.578]
[1764611384016,3.727265,2756.7,2755.7,4.20683718]
[1764611384219,3.72724029,2756.7,2755.7,4.20683718]
[1764611384517,3.22724029,2756.7,2755.7,0.578]
[1764611384715,4.02797853,2756.7,2755.7,4.2068347]
[1764611385495,4.02797853,2756.7,2755.7,0.578]
[1764611385690,3.22724029,2756.7,2755.7,0.578]
[1764611387119,4.71697137,2756.8,2755.7,4.20684072]
[1764611387714,8.34442862,2756.8,2755.7,0.578]
[1764611388425,0.405504,2756.7,2755.7,0.578]
[1764611388597,4.56045051,2756.6,2755.7,0.578]
[1764611388796,0.93279326,2756.6,2755.7,4.20678847]
[1764611389728,0.93279326,2756.6,2755.7,0.578]
[1764611390505,0.93279326,2756.6,2755.7,4.2068044]
[1764611390712,4.56047674,2756.6,2755.7,0.578]
[1764611391025,0.59630217,2756.5,2755.7,0.578]
[1764611391227,0.59630217,2756.5,2755.3,1.09078414]
[1764611391228,0.19940821,2756.3,2755.6,0.578]
[1764611392811,3.82754735,2756.3,2755.6,0.578]
[1764611393104,0.74554958,2756.2,2755.6,0.578]
[1764611395341,8.14203457,2755.8,2754.4,0.001]
[1764611395647,0.36392001,2755.8,2754.7,0.578]
[1764611396418,9.48721267,2756.1,2754.7,0.578]
[1764611396729,0.36392001,2755.5,2754.7,0.578]
[1764611396909,1.12610477,2755.5,2754.7,0.578]
[1764611398207,0.72559411,2755.4,2754.7,0.578]
[1764611398412,0.36392001,2755.3,2754.7,0.578]
[1764611398713,3.99330958,2755.3,2754.7,0.578]
[1764611399016,0.36392001,2755.3,2754.7,0.578]
[1764611399223,0.36392001,2755.3,2754.6,0.001]
[1764611399224,0.405504,2755.0,2754.6,0.001]
[1764611399714,0.36392001,2754.8,2754.6,0.001]
[1764611399911,0.0997041,2754.7,2754.6,0.001]
[1764611400111,0.0997041,2754.8,2754.6,0.001]
[1764611400346,0.36392001,2754.7,2754.6,0.001]
[1764611400840,3.99407937,2754.7,2754.6,0.001]
[1764611401047,6.05848734,2754.7,2754.6,0.001]
[1764611401816,2.42832798,2754.7,2754.6,0.001]
[1764611402017,1.49501812,2754.7,2754.6,0.001]
[1764611402215,0.72559411,2754.7,2754.6,0.001]
[1764611402446,0.82529821,2754.7,2754.6,0.001]
[1764611402646,1.23080221,2754.7,2754.6,0.001]
[1764611403149,4.86096157,2754.7,2754.6,0.001]
[1764611403352,5.71005031,2754.7,2754.6,0.001]
[1764611404752,4.20779107,2755.0,2754.6,0.001]
[1764611404753,3.62878999,2755.8,2754.6,0.001]
[1764611404927,0.36392002,2755.5,2754.6,0.001]
[1764611405133,1.08951413,2755.5,2754.6,0.001]
[1764611405923,7.62213876,2755.5,2754.6,0.001]
[1764611406226,0.82001388,2755.4,2754.6,0.001]
[1764611406429,0.94192002,2755.7,2754.6,0.001]
[1764611406849,0.72559411,2755.5,2754.6,0.001]
[1764611407061,0.72559411,2755.6,2754.6,0.001]
[1764611407369,0.36392002,2755.4,2754.6,0.001]
[1764611408430,0.36392002,2755.5,2754.6,0.001]
[1764611409021,0.72559411,2755.4,2754.6,0.001]
[1764611409224,1.19746125,2755.4,2754.6,0.001]
[1764611409427,0.83578716,2755.4,2754.6,0.001]
[1764611409622,1.08951413,2755.4,2754.6,0.001]
[1764611409826,0.72559411,2755.4,2754.6,0.001]
[1764611410048,0.0997041,2755.1,2754.6,0.001]
[1764611410782,0.405504,2755.2,2754.6,0.001]
[1764611411055,0.0997041,2754.7,2754.6,0.001]
[1764611411357,0.54523443,2754.7,2754.6,0.001]
[1764611412250,5.3064919,2754.7,2754.6,0.001]
[1764611412449,1.67633254,2754.7,2754.6,0.001]
[1764611412640,5.33925747,2754.7,2754.6,0.001]
[1764611413036,5.43896157,2754.7,2754.6,0.001]
[1764611418367,0.05,2755.9,2754.6,0.001]
[1764611418665,1.80954646,2755.9,2754.6,0.001]
[1764611418864,0.36392002,2755.2,2754.6,0.001]
[1764611419068,0.36392002,2755.1,2754.6,0.001]
[1764611419372,0.72559411,2755.0,2754.6,0.001]
[1764611419568,0.405504,2754.7,2754.6,0.001]
[1764611419767,0.5052081,2754.7,2754.6,0.001]
[1764611420143,0.72559411,2755.0,2754.6,0.001]
[1764611420559,1.08951413,2755.0,2754.6,0.001]
[1764611421445,0.72559411,2754.8,2754.6,0.001]
[1764611423778,4.35564057,2754.8,2754.6,0.001]
[1764611423942,4.71956059,2754.8,2754.6,0.001]
[1764611425278,4.35564057,2754.8,2754.6,0.001]
[1764611425477,1.22037475,2754.7,2754.6,0.001]
[1764611425811,1.08951413,2754.7,2754.6,0.001]
[1764611428459,4.71967349,2754.7,2754.6,0.001]
[1764611428665,0.72559411,2754.7,2754.6,0.001]
[1764611429252,4.35575347,2754.7,2754.6,0.001]
[1764611429458,4.82206594,2754.7,2754.6,0.001]
[1764611429665,5.22756994,2754.7,2754.6,0.001]
[1764611430373,5.32727404,2754.7,2754.6,0.001]
[1764611431188,5.90527404,2754.7,2754.6,0.001]
[1764611434175,6.16948996,2754.7,2754.6,0.001]
[1764611434377,1.13109811,2754.6,2754.5,0.001]
[1764611434580,26.77484769,2754.6,2754.5,0.001]
[1764611434767,17.18874669,2754.6,2754.5,0.001]
[1764611435301,0.36392002,2753.5,2752.6,0.001]
[1764611435468,1.34842402,2753.5,2752.6,0.001]
[1764611435873,5.90101813,2753.5,2752.6,0.001]
[1764611436072,6.49111994,2753.5,2752.6,0.001]
[1764611436467,10.12286136,2753.5,2752.6,0.001]
[1764611436693,9.54386136,2753.5,2752.6,0.001]
[1764611437000,10.12286136,2753.5,2752.6,0.001]
[1764611437581,5.71686136,2753.5,2752.6,0.001]
[1764611438008,6.29586136,2753.5,2752.6,0.001]
[1764611440783,5.05780221,2753.2,2752.6,0.001]
[1764611441012,0.76942402,2752.9,2752.6,0.001]
[1764611441213,6.40066413,2752.9,2752.6,0.001]
[1764611441417,6.13644821,2752.9,2752.6,0.001]
[1764611441811,9.68122821,2752.9,2752.6,0.001]
[1764611442122,10.66818403,2752.9,2752.6,0.001]
[1764611442325,14.54518403,2752.9,2752.6,0.001]
[1764611442630,4.232504,2752.7,2752.6,0.001]
[1764611442792,29.71987852,2752.7,2752.6,0.001]
[1764611443191,25.58296052,2752.7,2752.6,0.001]
[1764611443391,28.64460656,2752.7,2752.6,0.001]
[1764611443813,22.90359056,2752.7,2752.6,0.001]
[1764611444088,25.95590056,2752.7,2752.6,0.001]
[1764611444504,25.54962242,2752.7,2752.6,0.001]
[1764611444914,27.33496442,2752.7,2752.6,0.001]
[1764611445108,26.75596442,2752.7,2752.6,0.001]
[1764611445426,27.33496442,2752.7,2752.6,0.001]
[1764611445598,27.90488885,2752.7,2752.6,0.001]
[1764611445801,19.24023685,2752.7,2752.6,0.001]
[1764611446128,8.93210735,2752.7,2752.6,0.001]
[1764611446302,9.09917688,2752.7,2752.6,0.001]
[1764611446499,8.76734588,2752.7,2752.6,0.001]
[1764611446846,11.85248199,2752.5,2752.4,0.001]
[1764611447005,19.60303934,2752.5,2752.4,0.001]
[1764611447327,21.98453741,2752.5,2752.4,0.001]
[1764611447532,20.24286541,2752.5,2752.4,0.001]
[1764611447899,22.29825041,2752.5,2752.4,0.001]
[1764611448365,22.34825041,2752.5,2752.4,0.001]
[1764611448904,20.88633741,2752.5,2752.4,0.001]
[1764611449539,21.21331424,2752.5,2752.4,0.001]
[1764611449727,21.08462424,2752.5,2752.4,0.001]
[1764611449921,23.40817424,2752.5,2752.4,0.001]
[1764611450235,23.89329824,2752.5,2752.4,0.001]
[1764611450430,23.48801715,2752.5,2752.4,0.001]
[1764611450743,23.53801715,2752.5,2752.4,0.001]
[1764611450900,27.04436915,2752.5,2752.4,0.001]
[1764611451104,25.28013915,2752.5,2752.4,0.001]
[1764611451539,29.01736715,2752.5,2752.4,0.001]
[1764611451838,25.04132815,2752.5,2752.4,0.001]
[1764611452132,39.79305815,2752.5,2752.4,0.001]
[1764611452340,40.19856215,2752.5,2752.4,0.001]
[1764611452740,22.16932515,2752.5,2752.4,0.001]
[1764611452938,22.37862515,2752.5,2752.4,0.001]
[1764611453120,28.70470515,2752.5,2752.4,0.001]
[1764611453324,28.12570515,2752.5,2752.4,0.001]
[1764611453631,21.54497815,2752.5,2752.4,0.001]
[1764611453836,19.01613215,2752.5,2752.4,0.001]
[1764611454017,18.43713215,2752.5,2752.4,0.001]
[1764611454226,19.01613215,2752.5,2752.4,0.001]
[1764611454425,21.66846015,2752.5,2752.4,0.001]
[1764611454635,22.38057815,2752.5,2752.4,0.001]
[1764611454854,18.96613215,2752.5,2752.4,0.001]
[1764611455639,21.81415115,2752.5,2752.4,0.001]
[1764611455808,18.96613215,2752.5,2752.4,0.001]
[1764611457847,7.68252182,2752.5,2752.4,0.001]
[1764611458031,5.30102375,2752.5,2752.4,0.001]
[1764611458216,5.70652775,2752.5,2752.4,0.001]
[1764611460611,3.63294139,2752.6,2752.4,0.001]
[1764611460612,3.63293484,2752.6,2752.4,0.001]
[1764611460815,0.579,2752.6,2752.4,0.001]
[1764611461053,0.36336879,2752.7,2752.4,0.001]
[1764611461218,0.94236879,2752.8,2752.4,0.001]
[1764611461415,0.36336879,2752.8,2752.4,0.001]
[1764611461612,0.36336879,2753.1,2752.4,0.001]
[1764611461816,0.36336879,2752.8,2752.4,0.001]
[1764611462046,0.579,2752.7,2752.4,0.001]
[1764611462349,0.36336879,2752.5,2752.4,0.001]
[1764611463537,4.72202375,2752.5,2752.4,0.001]
[1764611463739,0.36336879,2752.5,2752.4,0.001]
[1764611464248,1.0889629,2752.5,2752.4,0.001]
[1764611464619,0.36336879,2752.5,2752.4,0.001]
[1764611464820,0.002,2752.5,2752.4,0.001]
[1764611465519,0.20140821,2752.5,2752.4,0.001]
[1764611466245,0.002,2752.5,2752.4,0.001]
[1764611472072,0.36536879,2752.5,2752.4,0.001]
[1764611472658,4.72402375,2752.5,2752.4,0.001]
[1764611472860,5.60026989,2752.5,2752.4,0.001]
[1764611474137,0.72759411,2752.5,2752.4,0.001]
[1764611475062,4.36065496,2752.5,2752.4,0.001]
[1764611475229,4.46035906,2752.5,2752.4,0.001]
[1764611475641,4.86586306,2752.5,2752.4,0.001]
[1764611477561,5.44486306,2752.5,2752.4,0.001]
[1764611477747,6.10668715,2752.5,2752.4,0.001]
[1764611479976,5.52768715,2752.5,2752.4,0.001]
[1764611480174,6.10668715,2752.5,2752.4,0.001]
[1764611480562,1.1603379,2752.5,2752.4,0.001]
[1764611480738,4.21439875,2752.5,2752.4,0.001]
[1764611480938,4.11469465,2752.5,2752.4,0.001]
[1764611481237,4.47806344,2752.5,2752.4,0.001]
[1764611481574,0.4816338,2752.5,2752.4,0.001]
[1764611482270,4.11469465,2752.5,2752.4,0.001]
[1764611482449,4.88944523,2752.5,2752.4,0.001]
[1764611482649,4.11469465,2752.5,2752.4,0.001]
[1764611482859,4.11669465,2752.5,2752.4,0.001]
[1764611483167,0.4836338,2752.5,2752.4,0.001]
[1764611483373,4.11669465,2752.5,2752.4,0.001]
[1764611483567,3.63506085,2752.5,2752.4,0.001]
[1764611483737,5.35239433,2752.5,2752.4,0.001]
[1764611484570,4.77339433,2752.5,2752.4,0.001]
[1764611484866,3.99842964,2752.5,2752.4,0.001]
[1764611485977,3.63506085,2752.5,2752.4,0.001]
[1764611486794,3.73476495,2752.5,2752.4,0.001]
[1764611487145,3.63506085,2752.5,2752.4,0.001]
[1764611487368,3.99842964,2752.5,2752.4,0.001]
[1764611488073,0.002,2752.5,2752.4,0.001]
[1764611490461,0.36536879,2752.5,2752.4,0.001]
[1764611491146,0.77087279,2752.5,2752.4,0.001]
[1764611492383,4.40393364,2752.5,2752.4,0.001]
[1764611492579,5.28018136,2752.5,2752.4,0.001]
[1764611493449,4.36065496,2752.5,2752.4,0.001]
[1764611493650,4.93965496,2752.5,2752.4,0.001]
[1764611493850,5.30302375,2752.5,2752.4,0.001]
[1764611495385,0.72759411,2752.5,2752.4,0.001]
[1764611496586,4.36065496,2752.5,2752.4,0.001]
[1764611497082,3.99635711,2752.6,2752.4,0.001]